fUSD/lending_fUSD_20250305
["ID","MTS","AMOUNT","RATE_DAILY","PERIOD"]
[355437041,1741151438364,-500.0,0.00011937,2]
[355437042,1741151438374,-395.22312885,0.00011937,2]
[355437043,1741151438448,-512.15687115,0.00011937,2]
[355437044,1741151438458,-500.0,0.00011937,2]
[355437045,1741151438467,-347.48400703,0.00011937,2]
[355437052,1741151440315,-152.51599297,0.00011937,2]
[355437053,1741151440324,-192.80055839,0.00011937,2]
[355437054,1741151440571,-307.19944161,0.00011937,2]
[355437055,1741151440581,-986.5,0.00011937,2]
[355437056,1741151440590,-500.0,0.00011937,2]
[355437057,1741151440599,-1331.44,0.00011937,2]
[355437058,1741151440609,-500.0,0.00011937,2]
[355437059,1741151440618,-500.0,0.00011937,2]
[355437060,1741151440627,-500.0,0.00011937,2]
[355437061,1741151440636,-681.49,0.00011937,2]
[355437062,1741151440646,-564.073888,0.00011937,2]
[355437063,1741151440655,-500.0,0.00011937,2]
[355437064,1741151440663,-49.85667039,0.00011937,2]
[355437091,1741151446551,-1045.01,0.00011935,2]
[355437092,1741151446561,-1436.7,0.00011936,2]
[355437093,1741151446571,-904.98332961,0.00011937,2]
[355437094,1741151446580,-680.94,0.00011937,2]
[355437095,1741151446591,-500.0,0.00011937,2]
[355437096,1741151446601,-2738.86,0.00011937,2]
[355437097,1741151446612,-500.0,0.00011937,2]
[355437098,1741151446627,-500.0,0.00011937,2]
[355437099,1741151446644,-1021.38,0.00011937,2]
[355437100,1741151446659,-500.0,0.00011937,2]
[355437101,1741151446670,-834.85,0.00011937,2]
[355437102,1741151446681,-500.0,0.00011937,2]
[355437103,1741151446691,-500.0,0.00011937,2]
[355437104,1741151446701,-520.6621418,0.00011937,2]
[355437105,1741151446711,-500.0,0.00011937,2]
[355437106,1741151446722,-500.0,0.00011937,2]
[355437107,1741151446732,-500.0,0.00011937,2]
[355437108,1741151446742,-1243.66,0.00011937,2]
[355437109,1741151446752,-500.0,0.00011937,2]
[355437110,1741151446762,-500.0,0.00011937,2]
[355437111,1741151446772,-983.41,0.00011937,2]
[355437112,1741151446782,-999.92,0.00011937,2]
[355437113,1741151446792,-1957.68,0.00011937,2]
[355437114,1741151446802,-1728.92,0.00011937,2]
[355437115,1741151446812,-1015.16,0.00011937,2]
[355437116,1741151446822,-500.0,0.00011937,2]
[355437117,1741151446832,-500.0,0.00011937,2]
[355437118,1741151446841,-820.14,0.00011937,2]
[355437119,1741151446851,-820.23,0.00011937,2]
[355437120,1741151446862,-500.0,0.00011937,2]
[355437121,1741151446872,-500.0,0.00011937,2]
[355437122,1741151446881,-3836.21,0.00011937,2]
[355437123,1741151446891,-1476.94,0.00011937,2]
[355437124,1741151446901,-2035.39,0.00011937,2]
[355437125,1741151446911,-4254.42,0.00011937,2]
[355437126,1741151446921,-500.0,0.00011937,2]
[355437127,1741151446931,-500.0,0.00011937,2]
[355437128,1741151446941,-500.0,0.00011937,2]
[355437129,1741151446952,-500.0,0.00011937,2]
[355437130,1741151446963,-972.91,0.00011937,2]
[355437131,1741151446973,-3150.01,0.00011937,2]
[355437132,1741151446983,-500.0,0.00011937,2]
[355437133,1741151446994,-2652.04647126,0.00011937,2]
[355437134,1741151447108,-254.12496072,0.00011937,2]
[355437135,1741151447121,-352.1936,0.00011937,2]
[355437136,1741151447133,-186.86496802,0.00011937,2]
[355437137,1741151447145,-1190.26,0.00011937,2]
[355437138,1741151447155,-500.0,0.00011937,2]
[355437139,1741151447165,-8257.94,0.00011937,2]
[355437140,1741151447175,-500.0,0.00011937,2]
[355437141,1741151447185,-3259.6,0.00011937,2]
[355437142,1741151447196,-1329.22,0.00011937,2]
[355437143,1741151447206,-2310.53,0.00011937,2]
[355437144,1741151447216,-312.05547299,0.00011937,2]
[355437145,1741151447226,-500.0,0.00011937,2]
[355437146,1741151447236,-1814.19,0.00011937,2]
[355437147,1741151447246,-854.00668,0.00011937,2]
[355437148,1741151447256,-500.0,0.00011937,2]
[355437149,1741151447265,-647.31719084,0.00011937,2]
[355437150,1741151447275,-500.0,0.00011937,2]
[355437151,1741151447284,-500.0,0.00011937,2]
[355437152,1741151447294,-500.0,0.00011937,2]
[355437153,1741151447302,-500.0,0.00011937,2]
[355437154,1741151447311,-1275.6,0.00011937,2]
[355437155,1741151447319,-882.28264816,0.00011937,2]
[355437156,1741151691576,-300.0,0.00012212,7]
[355437157,1741151693687,-200.0,0.00012212,7]
[355437158,1741151788737,-300.0,0.00012486,7]
[355437159,1741151790908,-200.0,0.00012486,7]
[355437160,1741151794336,100.0,0.00011937,7]
[355437161,1741151794358,300.0,0.00011937,7]
[355437162,1741151797949,-100.0,0.00011937,7]
[355437163,1741151797992,-200.0,0.00012211,7]
[355437164,1741151800137,-300.0,0.00012211,7]
[355437165,1741151802699,-300.0,0.00012485,7]
[355437166,1741151804093,-200.0,0.00012485,7]
[355437168,1741152094059,450.5,9.09e-05,2]
[355437172,1741152506674,4152.3,0.00020011,120]
[355437184,1741152631827,-382.08,0.00010926,2]
[355437185,1741152631896,-132.41,0.00010926,2]
[355437186,1741152631905,-150.0,0.00010958,2]
[355437187,1741152631914,-1000.0,0.00010991,2]
[355437188,1741152631924,-550.0,0.00011,2]
[355437189,1741152631934,-165.18,0.00011006,2]
[355437190,1741152631943,-644.86072594,0.00011012,2]
[355437191,1741152631966,-1355.13927406,0.00011012,2]
[355437192,1741152631976,-786.57843734,0.0001111,2]
[355437193,1741152631985,-172.75,0.0001132,2]
[355437194,1741152631995,-450.5,0.00011354,2]
[355437195,1741152632004,-888.38106512,0.00011829,2]
[355437196,1741152632013,-308.80627488,0.00011834,2]
[355437197,1741152632022,-1799.87861544,0.00011834,2]
[355437198,1741152632032,-221.87930595,0.00011835,2]
[355437199,1741152632041,-1121.96912952,0.00011835,2]
[355437200,1741152632051,-36758.1707,0.00011835,2]
[355437201,1741152632060,-888.38106508,0.00011888,2]
[355437204,1741152632331,-1799.87861536,0.00011894,2]
[355437205,1741152632341,-233.79287415,0.000119,2]
[355437206,1741152632350,-150.0,0.00011928,2]
[355437207,1741152632360,-241.99260919,0.00011929,2]
[355437208,1741152632369,-500.0,0.00011929,2]
[355437209,1741152632379,-500.0,0.00011929,2]
[355437210,1741152632388,-500.0,0.00011929,2]
[355437211,1741152632397,-500.0,0.00011929,2]
[355437212,1741152632406,-500.0,0.00011929,2]
[355437213,1741152632415,-500.0,0.00011929,2]
[355437214,1741152632424,-500.0,0.00011929,2]
[355437215,1741152632433,-627.5857614,0.00011929,2]
[355437216,1741152632442,-500.0,0.00011929,2]
[355437217,1741152632452,-500.0,0.00011929,2]
[355437218,1741152632462,-500.0,0.00011929,2]
[355437219,1741152632475,-500.0,0.00011929,2]
[355437220,1741152632485,-874.69,0.00011929,2]
[355437221,1741152632494,-1546.07,0.00011929,2]
[355437222,1741152632504,-500.0,0.00011929,2]
[355437223,1741152632517,-777.42,0.00011929,2]
[355437224,1741152632526,-502.79,0.00011929,2]
[355437225,1741152632535,-500.0,0.00011929,2]
[355437226,1741152632545,-500.0,0.00011929,2]
[355437227,1741152632556,-994.03,0.00011929,2]
[355437228,1741152632565,-945.14,0.00011929,2]
[355437229,1741152632575,-781.12,0.00011929,2]
[355437230,1741152632585,-1967.93,0.00011929,2]
[355437231,1741152632595,-817.53,0.00011929,2]
[355437232,1741152632605,-722.79,0.00011929,2]
[355437233,1741152632615,-500.0,0.00011929,2]
[355437234,1741152632625,-945.39,0.00011929,2]
[355437235,1741152632634,-889.09,0.00011929,2]
[355437236,1741152632644,-932.95,0.00011929,2]
[355437237,1741152632654,-808.89,0.00011929,2]
[355437238,1741152632663,-1376.83,0.00011929,2]
[355437239,1741152632673,-978.82,0.00011929,2]
[355437240,1741152632682,-1090.27,0.00011929,2]
[355437241,1741152632691,-1557.77,0.00011929,2]
[355437242,1741152632700,-10657.82,0.00011929,2]
[355437243,1741152632710,-1656.89,0.00011929,2]
[355437244,1741152632719,-2683.72,0.00011929,2]
[355437245,1741152632729,-322.49897782,0.00011929,2]
[355437246,1741152632738,-785.97,0.00011929,2]
[355437247,1741152632747,-2788.47,0.00011929,2]
[355437248,1741152632757,-500.0,0.00011929,2]
[355437249,1741152632766,-2441.89,0.00011929,2]
[355437250,1741152632775,-3406.24,0.00011929,2]
[355437251,1741152632785,-3571.54,0.00011929,2]
[355437252,1741152632794,-2669.03,0.00011929,2]
[355437253,1741152632803,-6427.0,0.00011929,2]
[355437254,1741152632814,-1567.1,0.00011929,2]
[355437255,1741152632824,-1325.47,0.00011929,2]
[355437256,1741152632834,-2940.85,0.00011929,2]
[355437257,1741152632845,-10926.72,0.00011929,2]
[355437258,1741152632855,-2214.26,0.00011929,2]
[355437259,1741152632864,-5712.72,0.00011929,2]
[355437260,1741152632874,-2520.57,0.00011929,2]
[355437261,1741152632883,-3047.41,0.00011929,2]
[355437262,1741152632892,-1266.01,0.00011929,2]
[355437263,1741152632902,-1092.18,0.00011929,2]
[355437264,1741152632911,-2223.52,0.00011929,2]
[355437265,1741152632921,-500.0,0.00011929,2]
[355437266,1741152632930,-3623.35,0.00011929,2]
[355437267,1741152632939,-500.0,0.00011929,2]
[355437268,1741152632949,-3947.18,0.00011929,2]
[355437269,1741152632959,-2631.48,0.00011929,2]
[355437270,1741152632969,-557.85,0.00011929,2]
[355437271,1741152632979,-2726.84,0.00011929,2]
[355437272,1741152632988,-3742.31,0.00011929,2]
[355437273,1741152632997,-5470.76,0.00011929,2]
[355437274,1741152633008,-500.0,0.00011929,2]
[355437275,1741152633017,-1122.96,0.00011929,2]
[355437276,1741152633027,-1142.28,0.00011929,2]
[355437277,1741152633037,-4215.9,0.00011929,2]
[355437278,1741152633047,-4011.4,0.00011929,2]
[355437279,1741152633056,-4456.15,0.00011929,2]
[355437280,1741152633064,-7435.07,0.00011929,2]
[355437281,1741152633072,-500.0,0.00011929,2]
[355437282,1741152633081,-1392.73,0.00011929,2]
[355437283,1741152633090,-8198.42,0.00011929,2]
[355437284,1741152633101,-3546.6,0.00011929,2]
[355437285,1741152633110,-2039.4,0.00011929,2]
[355437286,1741152633120,-377.4634617,0.00011929,2]
[355437287,1741152633129,-2547.72,0.00011929,2]
[355437288,1741152633139,-4946.79,0.00011929,2]
[355437289,1741152633149,-3746.49,0.00011929,2]
[355437290,1741152633160,-500.0,0.00011929,2]
[355437291,1741152633170,-3596.85,0.00011929,2]
[355437292,1741152633180,-1001.47,0.00011929,2]
[355437293,1741152633190,-500.0,0.00011929,2]
[355437294,1741152633200,-764.41,0.00011929,2]
[355437295,1741152633209,-1415.3,0.00011929,2]
[355437296,1741152633219,-34817.84,0.00011929,2]
[355437297,1741152633228,-15775.83,0.00011929,2]
[355437298,1741152633238,-845.66,0.00011929,2]
[355437299,1741152633247,-2258.02,0.00011929,2]
[355437300,1741152633258,-1171.0,0.00011929,2]
[355437301,1741152633267,-2262.88,0.00011929,2]
[355437302,1741152633277,-2192.27,0.00011929,2]
[355437303,1741152633287,-783.25,0.00011929,2]
[355437304,1741152633296,-1312.67720415,0.0001193,2]
[355437305,1741152633306,-47155.6074953,0.0001193,2]
[355437306,1741152637598,-6107.54563059,0.00011835,2]
[355437307,1741152637610,-1704.75408117,0.00011835,2]
[355437308,1741152637622,-1277.07999995,0.00011835,2]
[355437309,1741152637665,-5125.11494585,0.00011835,2]
[355437310,1741152637674,-432.60626724,0.00011928,2]
[355437311,1741152637684,-3011.29,0.00011929,2]
[355437312,1741152637693,-500.0,0.00011929,2]
[355437313,1741152637702,-500.0,0.00011929,2]
[355437314,1741152637712,-6448.43776869,0.0001193,2]
[355437316,1741152637723,-886.16936274,0.0001193,2]
[355437360,1741152639646,-1431.37412263,0.00011005,2]
[355437361,1741152639657,-455.41274895,0.00011005,2]
[355437362,1741152639715,-3594.43905136,0.00011005,2]
[355437363,1741152639727,-1847.0104236,0.00011005,2]
[355437364,1741152639737,-6699.26177636,0.0001193,2]
[355437365,1741152639812,-1319.47,0.00011929,2]
[355437366,1741152639822,-685.22357214,0.0001193,2]
[355437367,1741152639833,-731.521973,0.0001193,2]
[355437368,1741152639845,-969.93441918,0.0001193,2]
[355437369,1741152639861,-8429.25999997,0.0001193,2]
[355437370,1741152639876,-7151.24818019,0.0001193,2]
[355437371,1741152639968,-802.8373906,0.00011929,2]
[355437372,1741152639981,-702.47844533,0.00011929,2]
[355437373,1741152640041,-554.58416407,0.00011929,2]
[355437374,1741152640051,-2695.36924295,0.0001193,2]
[355437377,1741152640184,-1399.79399091,0.0001193,2]
[355437379,1741152640196,-2256.50655973,0.0001193,2]
[355437423,1741152642561,-907.61,0.00011929,2]
[355437424,1741152642571,-727.80090626,0.0001193,2]
[355437425,1741152642583,-36972.34323854,0.0001193,2]
[355437426,1741152642594,-2305.68935329,0.0001193,2]
[355437427,1741152642606,-4668.02370781,0.0001193,2]
[355437428,1741152642634,-447.27153168,0.0001193,2]
[355437429,1741152642645,-835.04991627,0.0001193,2]
[355437430,1741152642657,-739.02110299,0.0001193,2]
[355437431,1741152642668,-512.6900035,0.0001193,2]
[355437432,1741152644254,-1086.48280957,0.0001193,2]
[355437433,1741152644265,-284.74638608,0.0001193,2]
[355437434,1741152644282,-562.94029799,0.0001193,2]
[355437435,1741152644293,-282.22400001,0.0001193,2]
[355437436,1741152644304,-386.4901369,0.0001193,2]
[355437437,1741152644315,-392.53922624,0.0001193,2]
[355437438,1741152644327,-545.755,0.0001193,2]
[355437439,1741152645463,-500.0,0.00011929,2]
[355437440,1741152645476,-23.79479023,0.00011929,2]
[355437441,1741152645526,-476.20520977,0.00011929,2]
[355437442,1741152645535,-4573.66904223,0.0001193,2]
[355437443,1741152645547,-840.9731679,0.0001193,2]
[355437444,1741152645559,-98253.48083373,0.0001193,2]
[355437445,1741152645587,-343.53915486,0.0001193,2]
[355437446,1741152645708,-668.30843146,0.0001193,2]
[355437447,1741152645772,-562624.4998973,0.0001193,2]
[355437448,1741152645784,-432.19494406,0.0001193,2]
[355437449,1741152660139,145348.43,0.0001,2]
[355437450,1741152750079,-300.0,0.00011935,7]
[355437451,1741152751855,-200.0,0.00011935,7]
[355437452,1741152812052,3000.0,8.22e-05,2]
[355437453,1741152814260,3000.0,9.59e-05,2]
[355437455,1741152832740,900.0,8.972e-05,2]
[355437456,1741152899250,-900.0,0.00010342,2]
[355437457,1741152899281,-550.0,0.00010651,2]
[355437458,1741152899313,-3000.0,0.0001096,2]
[355437459,1741152910258,1300.0,8.22e-05,2]
[355437460,1741152910550,-912.36992509,0.00011276,2]
[355437461,1741152910577,-550.0,0.00011376,2]
[355437462,1741152910603,-900.0,0.00011712,2]
[355437463,1741152910627,-711.67223,0.0001182,2]
[355437464,1741152910653,-150.0,0.00011827,2]
[355437465,1741152910678,-183.20853065,0.00011834,2]
[355437466,1741152910701,-324.07691851,0.00011834,2]
[355437467,1741152910725,-150.0,0.00011928,2]
[355437468,1741152910758,-247.20578495,0.00011928,2]
[355437469,1741152910783,-1655.33,0.00011929,2]
[355437470,1741152910806,-500.0,0.00011929,2]
[355437471,1741152910829,-500.0,0.00011929,2]
[355437472,1741152910853,-500.0,0.00011929,2]
[355437473,1741152910876,-500.0,0.00011929,2]
[355437474,1741152910900,-908.06,0.00011929,2]
[355437475,1741152910923,-1371.37,0.00011929,2]
[355437476,1741152910948,-500.0,0.00011929,2]
[355437477,1741152910972,-279.26656233,0.00011929,2]
[355437478,1741152910997,-921.11,0.00011929,2]
[355437479,1741152911022,-2672.28,0.00011929,2]
[355437480,1741152911046,-664.45,0.00011929,2]
[355437481,1741152911073,-500.0,0.00011929,2]
[355437482,1741152911101,-534.87432155,0.00011929,2]
[355437483,1741152911125,-1109.99,0.00011929,2]
[355437484,1741152911150,-1032.04,0.00011929,2]
[355437485,1741152911175,-1193.61,0.00011929,2]
[355437486,1741152911201,-1876.11,0.00011929,2]
[355437487,1741152911225,-500.0,0.00011929,2]
[355437488,1741152911250,-500.0,0.00011929,2]
[355437489,1741152911275,-501.0,0.00011929,2]
[355437490,1741152911299,-3264.31,0.00011929,2]
[355437491,1741152911324,-500.0,0.00011929,2]
[355437492,1741152911347,-500.0,0.00011929,2]
[355437493,1741152911372,-180.0,0.00011929,2]
[355437494,1741152911397,-500.0,0.00011929,2]
[355437495,1741152911421,-896.3,0.00011929,2]
[355437496,1741152911446,-3422.73,0.00011929,2]
[355437497,1741152911471,-620.25417892,0.00011929,2]
[355437498,1741152911495,-745.88,0.00011929,2]
[355437499,1741152911520,-500.0,0.00011929,2]
[355437500,1741152911544,-1031.43,0.00011929,2]
[355437501,1741152911571,-3676.37,0.00011929,2]
[355437502,1741152911595,-500.0,0.00011929,2]
[355437503,1741152911619,-1713.5,0.00011929,2]
[355437504,1741152911644,-500.0,0.00011929,2]
[355437505,1741152911670,-2827.81,0.00011929,2]
[355437506,1741152911696,-1323.391548,0.00011929,2]
[355437507,1741152913572,1300.0,9.59e-05,2]
[355437508,1741152915170,1300.0,0.0001096,2]
[355437509,1741152922724,-4854.528452,0.00011929,2]
[355437510,1741152922754,-500.0,0.00011929,2]
[355437511,1741152922780,-1110.19,0.00011929,2]
[355437512,1741152922808,-500.0,0.00011929,2]
[355437513,1741152922839,-3018.76,0.00011929,2]
[355437514,1741152922864,-931.26,0.00011929,2]
[355437515,1741152922889,-1757.5,0.00011929,2]
[355437516,1741152922916,-10471.44,0.00011929,2]
[355437517,1741152922941,-500.0,0.00011929,2]
[355437518,1741152922966,-500.0,0.00011929,2]
[355437519,1741152922992,-500.0,0.00011929,2]
[355437520,1741152923018,-1218.34,0.00011929,2]
[355437521,1741152923043,-500.0,0.00011929,2]
[355437522,1741152923073,-7913.86,0.00011929,2]
[355437523,1741152923098,-967.75,0.00011929,2]
[355437524,1741152923123,-500.0,0.00011929,2]
[355437525,1741152923147,-500.0,0.00011929,2]
[355437526,1741152923171,-2415.55,0.00011929,2]
[355437527,1741152923196,-500.0,0.00011929,2]
[355437528,1741152923221,-890.37,0.00011929,2]
[355437529,1741152923246,-2920.44,0.00011929,2]
[355437530,1741152923270,-500.0,0.00011929,2]
[355437531,1741152923295,-500.0,0.00011929,2]
[355437532,1741152923321,-3430.011548,0.00011929,2]
[355437533,1741152937172,-2044.678452,0.00011929,2]
[355437534,1741152937198,-883.84,0.00011929,2]
[355437535,1741152937222,-500.0,0.00011929,2]
[355437536,1741152937247,-2130.87,0.00011929,2]
[355437537,1741152937272,-500.0,0.00011929,2]
[355437538,1741152937297,-838.25,0.00011929,2]
[355437539,1741152937322,-1512.26,0.00011929,2]
[355437540,1741152937345,-500.0,0.00011929,2]
[355437541,1741152937368,-3699.12,0.00011929,2]
[355437542,1741152937392,-1155.12,0.00011929,2]
[355437543,1741152937416,-661.29,0.00011929,2]
[355437544,1741152937439,-998.29,0.00011929,2]
[355437545,1741152937463,-1719.46,0.00011929,2]
[355437546,1741152937486,-1481.65,0.00011929,2]
[355437547,1741152937510,-1650.31,0.00011929,2]
[355437548,1741152937534,-3472.38,0.00011929,2]
[355437549,1741152937559,-8895.27,0.00011929,2]
[355437550,1741152937584,-3782.72,0.00011929,2]
[355437551,1741152937608,-500.0,0.00011929,2]
[355437552,1741152937632,-500.0,0.00011929,2]
[355437553,1741152937657,-408.88056224,0.00011929,2]
[355437554,1741152937680,-500.0,0.00011929,2]
[355437555,1741152937705,-745.02,0.00011929,2]
[355437556,1741152937728,-500.0,0.00011929,2]
[355437557,1741152937752,-2521.84,0.00011929,2]
[355437558,1741152937777,-7898.75098576,0.00011929,2]
[355437559,1741152941557,-3059.96901424,0.00011929,2]
[355437560,1741152941585,-500.0,0.00011929,2]
[355437561,1741152941610,-406.0994535,0.00011929,2]
[355437562,1741152941637,-5069.44,0.00011929,2]
[355437563,1741152941662,-4040.24,0.00011929,2]
[355437564,1741152941687,-500.0,0.00011929,2]
[355437565,1741152941712,-500.0,0.00011929,2]
[355437566,1741152941739,-3586.38,0.00011929,2]
[355437567,1741152941765,-500.0,0.00011929,2]
[355437568,1741152941790,-500.0,0.00011929,2]
[355437569,1741152941815,-887.71,0.00011929,2]
[355437570,1741152941840,-5242.81,0.00011929,2]
[355437571,1741152941865,-1094.68,0.00011929,2]
[355437572,1741152941890,-500.0,0.00011929,2]
[355437573,1741152941916,-1076.17,0.00011929,2]
[355437574,1741152941943,-6002.8,0.00011929,2]
[355437575,1741152941968,-500.0,0.00011929,2]
[355437576,1741152941992,-500.0,0.00011929,2]
[355437577,1741152942018,-3532.78,0.00011929,2]
[355437578,1741152942043,-522.98,0.00011929,2]
[355437579,1741152942071,-611.31,0.00011929,2]
[355437580,1741152942095,-500.0,0.00011929,2]
[355437581,1741152942121,-3844.26,0.00011929,2]
[355437582,1741152942146,-4675.59,0.00011929,2]
[355437583,1741152942173,-710.71,0.00011929,2]
[355437584,1741152942199,-1136.07153226,0.00011929,2]
[355437585,1741152955483,-1043.57846774,0.00011929,2]
[355437586,1741152955508,-500.0,0.00011929,2]
[355437587,1741152955533,-5456.42153226,0.00011929,2]
[355437588,1741152964852,3425.2073718,0.0002,120]
[355437589,1741153069235,2800.0,8.22e-05,2]
[355437590,1741153070855,2800.0,9.59e-05,2]
[355437591,1741153075814,600.0,8.972e-05,2]
[355437592,1741153226282,405.45,9.076e-05,2]
[355437593,1741153769340,752.0,0.00011,10]
[355437600,1741153831813,-599.29702508,0.00010342,2]
[355437601,1741153831825,-0.70297492,0.00010342,2]
[355437602,1741153831834,-1299.29702508,0.0001096,2]
[355437603,1741153831856,-1500.70297492,0.0001096,2]
[355437604,1741153831865,-179.75,0.00010976,2]
[355437605,1741153831874,-550.0,0.00011,2]
[355437606,1741153831884,-1000.0,0.00011008,2]
[355437607,1741153831895,-344.68,0.00011178,2]
[355437608,1741153831904,-405.45,0.0001134,2]
[355437609,1741153831913,-150.0,0.00011376,2]
[355437610,1741153831922,-150.0,0.00011376,2]
[355437611,1741153831931,-650.26938368,0.000114,2]
[355437612,1741153832028,-339.28061632,0.000114,2]
[355437613,1741153832039,-347.45,0.00011478,2]
[355437614,1741153832049,-300.0,0.00011588,2]
[355437615,1741153832059,-989.55,0.00011589,2]
[355437616,1741153832068,-989.55,0.00011589,2]
[355437617,1741153832077,-989.55,0.00011589,2]
[355437618,1741153832087,-989.55,0.00011589,2]
[355437619,1741153832096,-600.0,0.00011712,2]
[355437620,1741153832105,-695.33,0.000118,2]
[355437621,1741153832114,-441.09,0.000118,2]
[355437622,1741153832123,-151.4,0.000118,2]
[355437623,1741153832132,-344.68,0.000118,2]
[355437624,1741153832141,-344.68,0.000118,2]
[355437625,1741153832151,-1486.40289236,0.00011828,2]
[355437626,1741153832160,-1183.95062129,0.00011828,2]
[355437627,1741153832168,-264.69109278,0.0001183,2]
[355437628,1741153832177,-5285.56,0.0001185,2]
[355437629,1741153832187,-1486.40289228,0.00011888,2]
[355437630,1741153832196,-1183.95062122,0.00011888,2]
[355437631,1741153832205,-150.0,0.00011899,2]
[355437632,1741153832214,-438.22,0.000119,2]
[355437633,1741153832224,-43496.82016273,0.000119,2]
[355437634,1741153832233,-856.84242453,0.000119,2]
[355437635,1741153832242,-500.0,0.00011927,2]
[355437636,1741153832251,-831.96,0.00011927,2]
[355437637,1741153832260,-753.39,0.00011927,2]
[355437638,1741153832269,-504.6038499,0.00011927,2]
[355437639,1741153832279,-500.0,0.00011927,2]
[355437640,1741153832290,-890.63,0.00011927,2]
[355437641,1741153832299,-500.0,0.00011927,2]
[355437642,1741153832307,-601.15,0.00011927,2]
[355437643,1741153832316,-500.0,0.00011927,2]
[355437644,1741153832326,-538.51833381,0.00011927,2]
[355437645,1741153832334,-500.0,0.00011927,2]
[355437646,1741153832344,-500.0,0.00011927,2]
[355437647,1741153832352,-891.09,0.00011927,2]
[355437648,1741153832361,-500.0,0.00011927,2]
[355437649,1741153832371,-500.0,0.00011927,2]
[355437650,1741153832380,-1084.57,0.00011927,2]
[355437651,1741153832389,-657.6,0.00011927,2]
[355437652,1741153832398,-500.0,0.00011927,2]
[355437653,1741153832407,-500.0,0.00011927,2]
[355437654,1741153832416,-500.0,0.00011927,2]
[355437655,1741153832425,-500.96,0.00011927,2]
[355437656,1741153832434,-1012.51,0.00011927,2]
[355437657,1741153832443,-500.0,0.00011927,2]
[355437658,1741153832452,-500.0,0.00011927,2]
[355437659,1741153832462,-518.7707719,0.00011927,2]
[355437660,1741153832471,-500.0,0.00011927,2]
[355437661,1741153832479,-500.0,0.00011927,2]
[355437663,1741153832489,-500.0,0.00011927,2]
[355437665,1741153832498,-500.0,0.00011927,2]
[355437666,1741153832506,-500.0,0.00011927,2]
[355437668,1741153832516,-500.0,0.00011927,2]
[355437669,1741153832525,-500.0,0.00011927,2]
[355437670,1741153832534,-500.0,0.00011927,2]
[355437671,1741153832542,-500.0,0.00011927,2]
[355437672,1741153832551,-500.0,0.00011927,2]
[355437673,1741153832559,-500.0,0.00011927,2]
[355437674,1741153832568,-871.5,0.00011927,2]
[355437675,1741153832577,-500.0,0.00011927,2]
[355437676,1741153832586,-654.56,0.00011927,2]
[355437677,1741153832595,-500.0,0.00011927,2]
[355437678,1741153832601,-500.0,0.00011927,2]
[355437679,1741153832607,-500.0,0.00011927,2]
[355437680,1741153832615,-500.0,0.00011927,2]
[355437681,1741153832625,-500.0,0.00011927,2]
[355437682,1741153832634,-500.0,0.00011927,2]
[355437683,1741153832643,-500.0,0.00011927,2]
[355437684,1741153832652,-2359.11,0.00011927,2]
[355437685,1741153832660,-500.0,0.00011927,2]
[355437686,1741153832669,-2870.35,0.00011927,2]
[355437687,1741153832678,-500.0,0.00011927,2]
[355437688,1741153832687,-606.67,0.00011927,2]
[355437689,1741153832696,-2084.25,0.00011927,2]